bitfinex-derivatives/quotes_ETHF0:USTF0_20260226
["timestamp","ask_amount","ask_price","bid_price","bid_amount"]
[1772086069141,0.59510381,2074.7,2073.9,0.25894918]
[1772086069650,0.59510381,2075.5,2074.1,0.30496215]
[1772086069848,0.59510381,2075.3,2074.1,0.30895966]
[1772086070045,0.60054701,2075.3,2074.0,6.321]
[1772086070244,0.18211271,2074.8,2074.0,6.321]
[1772086070444,0.59510381,2075.2,2074.2,0.30524436]
[1772086070940,0.59510381,2075.2,2074.4,0.30919683]
[1772086071144,0.59510381,2075.2,2074.5,6.321]
[1772086071343,0.59510381,2075.2,2074.6,0.30910729]
[1772086071545,0.59510381,2075.8,2074.7,0.30366409]
[1772086071749,0.59510381,2075.7,2074.8,6.321]
[1772086072146,0.59510381,2075.3,2074.4,0.30757402]
[1772086072350,0.59510381,2075.3,2074.4,6.62757402]
[1772086072544,0.59885962,2075.3,2074.4,0.00416276]
[1772086072747,0.59510381,2074.7,2074.4,0.00416276]
[1772086072948,0.59510381,2075.2,2074.4,0.00416276]
[1772086073151,0.77721652,2075.0,2074.4,0.00416276]
[1772086073350,0.59510381,2075.0,2074.4,0.00416276]
[1772086073750,0.77721652,2074.8,2074.4,0.00416276]
[1772086073949,0.59510381,2074.8,2074.4,0.00416276]
[1772086074153,0.18211271,2074.6,2074.4,0.00416276]
[1772086074652,0.18211271,2074.5,2074.4,0.00416276]
[1772086074855,0.59510381,2074.8,2074.4,0.00416276]
[1772086075154,0.18211271,2074.7,2074.4,0.00416276]
[1772086075354,0.77721652,2074.7,2074.4,0.00416276]
[1772086075557,0.59510381,2074.7,2074.2,6.32]
[1772086075754,0.18211271,2074.6,2074.2,6.32]
[1772086075953,0.77345689,2074.6,2074.2,6.32]
[1772086076154,0.18211271,2074.5,2074.2,6.32]
[1772086076451,0.59134418,2075.2,2074.2,6.32]
[1772086076651,0.59134418,2075.2,2074.2,6.32366782]
[1772086076853,0.59134418,2075.2,2074.2,6.94896019]
[1772086077254,0.59134418,2075.2,2074.2,0.62896019]
[1772086077454,0.59134418,2075.2,2073.8,6.94329237]
[1772086077748,0.59134418,2075.2,2073.9,6.10430543]
[1772086077955,0.59134418,2075.2,2074.0,0.62529237]
[1772086078647,0.59134418,2075.2,2074.0,0.62883771]
[1772086079050,0.59134418,2075.2,2074.0,0.00354534]
[1772086080749,0.59134418,2075.2,2073.6,0.62529237]
[1772086081052,0.59134418,2074.8,2073.5,6.318]
[1772086081858,0.59134418,2074.8,2073.5,6.32406208]
[1772086082354,0.59134418,2074.8,2073.5,6.94935445]
[1772086083256,0.59134418,2074.8,2073.5,6.32406208]
[1772086083960,0.59134418,2074.8,2073.5,0.00606208]
[1772086084158,0.59134418,2074.6,2073.5,0.00606208]
[1772086084459,0.59134418,2074.4,2073.5,0.00606208]
[1772086086658,0.59134418,2074.4,2073.0,0.62529237]
[1772086087057,7.41734418,2074.4,2073.0,0.62529237]
[1772086087259,0.59134418,2074.3,2073.0,0.62529237]
[1772086087660,0.59134418,2074.1,2073.0,0.63120652]
[1772086089061,0.59134418,2074.1,2073.0,0.00591415]
[1772086089260,0.59134418,2073.9,2073.0,0.00591415]
[1772086089766,0.59134418,2073.7,2073.0,0.63120652]
[1772086089962,0.00462185,2073.7,2073.0,0.63120652]
[1772086090168,0.59134418,2075.1,2073.4,0.62529237]
[1772086090362,0.59134418,2074.9,2073.4,0.62529237]
[1772086091166,0.59485864,2074.9,2073.4,0.62529237]
[1772086091769,0.59485864,2074.9,2073.6,0.62529237]
[1772086092068,0.59485864,2074.9,2073.7,0.62529237]
[1772086092768,0.59485864,2074.9,2073.9,0.62529237]
[1772086093269,0.59485864,2074.9,2074.1,0.62529237]
[1772086093270,0.00351446,2074.9,2074.1,0.62529237]
[1772086093971,0.59485864,2074.9,2074.1,0.62529237]
[1772086094270,0.00351446,2074.9,2074.1,0.62529237]
[1772086095874,0.59134418,2075.2,2074.3,0.62529237]
[1772086096073,0.59134418,2075.2,2074.4,0.62529237]
[1772086096469,0.59134418,2075.7,2074.4,0.62529237]
[1772086096674,0.59485864,2075.7,2074.4,0.62529237]
[1772086096876,0.59571194,2075.7,2074.4,0.62529237]
[1772086097774,0.5992264,2075.7,2074.4,0.62529237]
[1772086098980,0.59134418,2075.5,2074.4,0.62529237]
[1772086099479,0.59134418,2075.3,2074.4,0.62529237]
[1772086099883,0.59134418,2075.0,2074.4,0.62529237]
[1772086100480,0.59485864,2075.0,2074.4,0.62529237]
[1772086101475,0.59485864,2075.0,2074.2,0.62529237]
[1772086101682,0.59134418,2075.0,2074.2,0.62529237]
[1772086103481,0.24523776,2075.7,2074.0,0.62529237]
[1772086103482,0.59134418,2074.8,2074.0,0.62529237]
[1772086103881,0.59134418,2074.8,2073.8,0.62529237]
[1772086104078,0.59134418,2074.6,2073.8,0.62529237]
[1772086104473,0.59134418,2074.6,2073.4,0.62529237]
[1772086105189,0.59485864,2074.6,2073.4,0.62529237]
[1772086106483,0.66904266,2074.3,2073.1,0.6386042]
[1772086106885,0.00351446,2074.1,2073.1,0.6386042]
[1772086107090,0.66904266,2074.0,2073.1,0.6386042]
[1772086107686,0.67255712,2074.0,2073.1,0.6386042]
[1772086108277,0.66904266,2073.8,2073.1,0.6386042]
[1772086108484,0.66904266,2073.8,2073.0,0.00591415]
[1772086108883,0.66904266,2073.5,2073.0,0.00591415]
[1772086109284,0.00571346,2074.1,2072.7,0.6386042]
[1772086109285,0.66904266,2073.3,2072.7,0.6386042]
[1772086110290,0.66904266,2073.3,2072.7,0.003662]
[1772086110693,0.66904266,2073.3,2072.7,0.6422662]
[1772086110991,0.67255712,2073.3,2072.7,0.6422662]
[1772086111191,0.66904266,2073.3,2072.7,0.6422662]
[1772086112582,0.67255712,2073.3,2072.7,0.6422662]
[1772086112783,0.66904266,2073.7,2072.7,0.6422662]
[1772086117499,0.67255712,2073.7,2072.7,0.6422662]
[1772086119789,0.66904266,2073.7,2072.7,0.6422662]
[1772086119995,0.69315787,2074.1,2072.9,0.67643739]
[1772086120296,0.69315787,2074.1,2073.0,0.67643739]
[1772086120996,0.68744441,2073.9,2073.0,0.67643739]
[1772086121400,0.69095887,2073.9,2073.0,0.67643739]
[1772086122603,0.68744441,2073.9,2073.0,0.67643739]
[1772086123102,0.00351446,2073.8,2073.0,0.67643739]
[1772086123401,0.69095887,2073.8,2073.0,0.67643739]
[1772086124302,0.00351446,2073.7,2073.0,0.67643739]
[1772086125703,0.00351446,2073.6,2073.0,0.67643739]
[1772086125903,0.68744441,2073.8,2073.0,0.67643739]
[1772086126305,0.69095887,2073.7,2073.0,0.67643739]
[1772086126502,0.68744441,2073.7,2073.0,0.67643739]
[1772086126704,0.00351446,2073.6,2073.0,0.67643739]
[1772086127402,0.68744441,2073.7,2073.0,0.67643739]
[1772086127804,0.00351446,2073.6,2073.0,0.67643739]
[1772086128212,0.00351446,2073.5,2073.0,0.67643739]
[1772086128509,0.68744441,2073.7,2073.0,0.67643739]
[1772086128708,0.00351446,2073.6,2073.0,0.67643739]
[1772086128910,0.68744441,2073.7,2073.0,0.67643739]
[1772086129311,0.00351446,2073.5,2073.0,0.67643739]
[1772086129711,0.00351446,2073.4,2073.0,0.67643739]
[1772086129909,0.68744441,2073.7,2073.0,0.67643739]
[1772086130308,0.00351446,2073.5,2073.0,0.67643739]
[1772086130503,0.68744441,2074.0,2073.0,0.67643739]
[1772086130912,0.00351446,2073.7,2073.0,0.67643739]
[1772086131311,0.00351446,2073.5,2073.0,0.67643739]
[1772086131512,0.68744441,2073.9,2073.0,0.67643739]
[1772086131814,0.00351446,2073.6,2073.0,0.67643739]
[1772086132113,0.69315787,2074.1,2073.1,0.67643739]
[1772086132712,0.68744441,2074.3,2073.3,0.67643739]
[1772086133015,0.68744441,2074.3,2073.5,0.67643739]
[1772086133715,0.6922129,2074.3,2073.5,0.67643739]
[1772086140720,0.00476849,2074.3,2073.6,0.72775847]
[1772086141317,0.68479262,2074.3,2073.3,0.72775847]
[1772086141617,0.68479262,2074.3,2073.1,0.72775847]
[1772086142320,0.68002413,2074.1,2073.1,0.72775847]
[1772086144121,0.68002413,2074.1,2073.0,6.318]
[1772086144715,0.68002413,2073.9,2072.7,0.73142047]
[1772086145020,0.68002413,2073.7,2072.7,0.73142047]
[1772086145214,0.68002413,2073.7,2072.7,0.003662]
[1772086145415,0.68002413,2073.5,2072.7,0.003662]
[1772086145816,0.68002413,2073.5,2072.4,0.72775847]
[1772086146024,0.68002413,2073.3,2072.4,0.72775847]
[1772086146818,0.68002413,2073.3,2072.4,0.73247686]
[1772086147218,47.426,2073.7,2072.4,0.73247686]
[1772086147523,0.68002413,2073.5,2072.6,0.72775847]
[1772086150828,0.68002413,2073.5,2072.4,0.00471839]
[1772086151029,0.68002413,2073.5,2072.4,0.73247686]
[1772086154226,1.75705266,2073.6,2072.4,0.00471839]
[1772086154227,0.68002413,2073.3,2072.4,0.00471839]
[1772086154424,0.68002413,2073.3,2071.9,7.04775847]
[1772086154622,0.68002413,2073.3,2072.0,0.72775847]
[1772086155525,0.68002413,2073.3,2072.0,0.73306057]
[1772086156025,0.68002413,2073.2,2071.7,0.72775847]
[1772086156229,0.68002413,2072.8,2071.7,0.72775847]
[1772086156627,0.68002413,2072.7,2071.7,0.72775847]
[1772086157133,0.68552137,2072.7,2071.7,0.73316239]
[1772086165236,0.00549724,2072.7,2071.7,0.73316239]
[1772086165737,0.00549724,2072.7,2072.0,0.72775847]
[1772086167535,0.72239586,2072.7,2072.0,0.72775847]
[1772086169442,0.72239586,2072.7,2071.8,0.71163076]
[1772086170540,0.72239586,2072.7,2071.7,0.00540392]
[1772086172039,0.71689862,2072.5,2071.7,0.00540392]
[1772086175742,0.71689862,2072.5,2071.3,0.74482548]
[1772086175943,0.71283983,2072.3,2071.3,0.74482548]
[1772086176741,0.71283983,2072.3,2071.3,0.75040584]
[1772086177436,0.71283983,2072.3,2071.3,0.00558036]
[1772086177633,0.71283983,2072.1,2071.3,0.00558036]
[1772086177837,0.71283983,2072.1,2070.8,6.323]
[1772086177838,0.71283983,2071.9,2071.0,0.74482548]
[1772086178941,0.71283983,2071.9,2071.0,0.74955762]
[1772086182448,0.71283983,2072.3,2071.1,0.74482548]
[1772086188552,0.71283983,2072.1,2071.0,0.00473214]
[1772086188754,0.71283983,2072.1,2071.0,0.74955762]
[1772086189751,0.71283983,2072.0,2071.0,0.74955762]
[1772086202269,0.73274397,2072.1,2071.0,0.74955762]
[1772086202463,0.73274397,2072.1,2071.1,0.74271378]
[1772086202766,0.73274397,2072.3,2071.3,0.74271378]
[1772086203158,0.73274397,2072.3,2071.3,7.99284641]
[1772086203367,0.73274397,2072.3,2071.1,0.24141]
[1772086203368,0.73274397,2072.3,2071.4,0.74271378]
[1772086203563,0.00549724,2072.7,2071.6,0.24135]
[1772086203764,0.73824121,2072.7,2071.8,0.74271378]
[1772086204563,0.00549724,2072.7,2071.8,0.74271378]
[1772086205362,0.73824121,2072.7,2071.8,0.74271378]
[1772086212578,0.00549724,2072.7,2071.8,0.74271378]
[1772086213788,0.73824121,2072.7,2071.8,0.74271378]
[1772086214284,0.73824121,2072.7,2071.6,0.74271378]
[1772086217482,2.36617139,2072.7,2071.6,0.74271378]
[1772086217783,0.73274397,2072.6,2071.6,0.74271378]
[1772086218787,0.73274397,2072.4,2071.2,0.74271378]
[1772086223993,0.00549724,2072.7,2071.4,0.74271378]
[1772086224293,0.73824121,2072.7,2071.7,0.74271378]
[1772086228991,0.00549724,2072.7,2071.8,0.77187059]
[1772086229191,0.00549724,2072.7,2072.0,0.77187059]
[1772086230295,0.75469102,2072.7,2072.0,0.77187059]
[1772086230800,0.75469102,2072.7,2071.9,6.323]
[1772086231494,0.75469102,2072.7,2072.0,0.77187059]
[1772086233390,0.75469102,2072.7,2071.8,3.0581]
[1772086233700,0.76044497,2072.5,2071.8,0.82576725]
[1772086242502,0.00549724,2072.7,2072.0,0.71286741]
[1772086242803,0.76044497,2072.9,2072.2,0.71286741]
[1772086243806,0.76468953,2072.9,2072.2,0.71286741]
[1772086244702,0.00424456,2072.9,2072.2,0.71286741]
[1772086244908,0.76044497,2073.2,2072.2,0.71286741]
[1772086246006,0.76661499,2073.2,2072.2,0.71286741]
[1772086247208,0.76661499,2073.2,2072.1,6.323]
[1772086247209,0.76044497,2074.1,2073.1,0.71286741]
[1772086247407,3.15063,2073.9,2073.3,0.71286741]
[1772086247713,0.76044497,2074.5,2073.3,0.71286741]
[1772086248010,0.76044497,2074.5,2073.5,0.71286741]
[1772086248205,3.40503497,2074.4,2073.5,0.71820136]
[1772086251411,0.73368014,2075.9,2074.2,0.79986601]
[1772086251612,0.73368014,2075.7,2074.4,0.79986601]
[1772086252412,0.73858321,2075.7,2074.4,0.79986601]
[1772086253807,0.73858321,2075.7,2074.3,7.11986601]
[1772086254102,0.73858321,2075.7,2074.4,0.79986601]
[1772086260915,0.73858321,2075.7,2074.5,0.85778741]
[1772086264119,0.80478885,2075.6,2074.5,0.85778741]
[1772086264316,0.80478885,2075.6,2073.9,0.85778741]
[1772086264707,0.80478885,2075.6,2074.0,0.85778741]
[1772086264914,0.80478885,2075.5,2074.0,0.85778741]
[1772086265214,0.80478885,2075.3,2074.0,0.85778741]
[1772086268721,0.80478885,2075.1,2074.0,0.85778741]
[1772086270716,0.80478885,2075.0,2073.8,6.317]
[1772086271216,0.80478885,2075.0,2073.8,7.17478741]
[1772086271414,0.80478885,2075.0,2073.9,0.85778741]
[1772086274314,0.00490307,2075.7,2074.4,0.85778741]
[1772086274519,0.80478885,2075.9,2074.8,0.85778741]
[1772086275520,0.80879764,2075.9,2074.8,0.85778741]
[1772086277322,0.80879764,2075.9,2075.0,0.85778741]
[1772086277522,0.00400879,2075.9,2075.2,0.85778741]
[1772086277822,0.80478885,2076.3,2075.2,0.85778741]
[1772086278717,0.80478885,2077.0,2075.7,0.85778741]
[1772086278924,0.80926539,2076.3,2075.5,0.85778741]
[1772086279423,0.81416846,2076.3,2075.5,0.85778741]
[1772086279822,0.80926539,2076.3,2075.1,0.85778741]
[1772086280123,0.80478885,2076.1,2075.1,0.85778741]
[1772086280526,0.80478885,2075.7,2075.0,0.00514728]
[1772086280924,0.80478885,2075.2,2074.9,2.829]
[1772086281526,0.00490307,2075.1,2074.9,2.829]
[1772086282120,0.00490307,2075.1,2074.9,2.83317298]
[1772086282322,0.80478885,2075.2,2074.9,2.83317298]
[1772086286025,0.80478885,2075.2,2074.9,0.50232257]
[1772086287429,6.421,2075.7,2074.9,1.32506061]
[1772086287734,6.421,2075.7,2074.9,0.50232257]
[1772086287927,0.15827969,2075.6,2074.9,0.34404678]
[1772086289329,0.15827969,2075.6,2074.9,0.33541806]
[1772086289626,0.15827969,2075.6,2074.3,0.90602846]
[1772086289823,1.75616876,2075.4,2074.0,0.90602846]
[1772086290425,1.75616876,2075.4,2074.0,0.91048735]
[1772086290829,0.01820417,2075.3,2074.0,0.91048735]
[1772086293729,0.01820417,2075.3,2074.2,0.90775278]
[1772086302057,1.75616876,2075.3,2074.2,0.90775278]
[1772086302263,0.00904417,2075.2,2074.2,0.90775278]
[1772086311363,0.3892244,2075.1,2074.2,0.90775278]
[1772086311564,4.02668123,2075.2,2074.2,0.90775278]
[1772086311761,4.65686229,2075.1,2074.2,0.90775278]
[1772086311961,6.75424106,2075.0,2074.2,0.90775278]
[1772086312161,0.38924106,2074.9,2074.2,0.90775278]
[1772086313260,0.38924106,2074.9,2074.0,0.90525102]
[1772086313858,4.41592229,2074.9,2073.6,0.90080975]
[1772086314062,5.78284999,2074.5,2073.6,0.90080975]
[1772086314266,0.38924106,2074.4,2073.6,0.90080975]
[1772086314464,40.8,2074.4,2073.6,0.90080975]
[1772086314661,47.175,2074.4,2073.6,0.90080975]
[1772086315064,47.17985835,2074.4,2073.6,0.90516171]
[1772086318169,6.37985835,2074.4,2073.6,0.90516171]
[1772086320774,6.37985835,2074.4,2073.5,0.89164064]
[1772086321073,0.24103,2074.3,2073.5,0.89164064]
[1772086321665,0.24106,2074.1,2072.8,0.86847991]
[1772086321871,0.45190608,2074.0,2072.8,0.87207473]
[1772086322067,0.44777532,2073.8,2072.8,0.87207473]
[1772086324676,6.475,2073.9,2072.8,0.87207473]
[1772086325375,6.94456917,2073.9,2072.8,0.87207473]
[1772086328579,0.45233233,2073.8,2072.8,0.87207473]
[1772086331370,0.43652646,2073.7,2072.8,0.87207473]
[1772086334877,0.43652646,2073.7,2072.8,0.00359482]
[1772086336678,0.24114,2073.4,2072.0,0.86847991]
[1772086336879,0.4110296,2073.2,2072.0,0.86847991]
[1772086337883,0.4110296,2073.2,2072.0,0.87268069]
[1772086345987,40.8,2073.5,2072.0,0.87268069]
[1772086345988,6.516,2073.5,2072.2,0.79256008]
[1772086346383,6.88295014,2073.5,2072.2,0.79256008]
[1772086346788,0.36695014,2073.4,2072.2,0.79256008]
[1772086347790,6.88266742,2073.5,2072.3,0.79256008]
[1772086348489,0.35427741,2073.4,2072.3,0.79256008]
[1772086361704,6.516,2073.5,2072.3,0.79256008]
[1772086361905,0.38984277,2073.4,2072.3,0.79256008]
[1772086362105,0.35513952,2073.4,2072.3,0.79256008]
[1772086365609,0.35513952,2073.4,2072.2,5.97800634]
[1772086365610,0.35513952,2073.4,2072.5,0.79692337]
[1772086368609,0.33605422,2073.4,2072.6,0.79692337]
[1772086376414,0.34707472,2073.2,2072.6,0.79692337]
[1772086377317,6.86287643,2073.5,2072.6,0.79692337]
[1772086377517,0.73719466,2073.4,2072.6,0.79692337]
[1772086377815,0.34687427,2073.4,2072.6,0.79692337]
[1772086380223,7.68890696,2073.5,2072.6,0.79692337]
[1772086380429,0.39039118,2073.4,2072.8,0.75476558]
[1772086380629,6.8621502,2073.5,2072.8,0.75476558]
[1772086380833,4.04089408,2073.6,2073.2,0.75476558]
[1772086381026,0.34561969,2073.7,2073.2,0.75476558]
[1772086382832,10.65274264,2074.2,2073.5,0.75476558]
[1772086383028,0.34574264,2074.2,2073.5,0.76000378]
[1772086383427,1.5184573,2074.1,2073.5,0.76000378]
[1772086383627,0.34555034,2074.0,2073.5,0.76000378]
[1772086384932,0.34256534,2073.8,2073.5,0.0052382]
[1772086385132,0.34256534,2073.8,2073.4,0.75476558]
[1772086385133,0.34256534,2073.8,2073.0,0.75476558]
[1772086386236,0.42205189,2073.9,2073.2,0.75476558]
[1772086386436,0.42597387,2074.0,2073.2,0.75476558]
[1772086390035,0.42632652,2074.1,2073.4,0.75476558]
[1772086390635,7.06346815,2074.2,2073.4,0.75476558]
[1772086391736,0.42634974,2074.1,2073.4,0.75476558]
[1772086392632,0.42406565,2074.0,2073.4,0.75476558]
[1772086393536,7.060953,2074.2,2073.4,0.75476558]
[1772086394439,0.42384159,2074.1,2073.4,0.75476558]
[1772086395838,0.42383604,2074.0,2073.4,0.75476558]
[1772086397233,0.42275637,2073.5,2073.0,0.00550565]
[1772086397440,0.42275637,2073.5,2073.0,0.76027123]
[1772086398430,0.42275637,2073.5,2073.0,0.61617288]
[1772086399539,0.56139819,2073.6,2073.0,0.62070613]
[1772086404142,6.648,2073.7,2073.0,0.62070613]
[1772086404442,7.21316511,2073.7,2073.0,0.62070613]
[1772086405240,6.648,2073.7,2073.1,0.75476558]
[1772086405540,0.56516562,2073.8,2073.1,0.75476558]
[1772086407739,0.56417957,2073.6,2073.1,0.75476558]
[1772086408131,1.17290696,2073.9,2073.1,0.75476558]
[1772086408441,0.56418468,2073.8,2073.1,0.75476558]
[1772086409338,0.56229204,2074.0,2073.1,0.75476558]
[1772086411035,0.56229204,2074.0,2073.0,1.17744021]
[1772086411036,6.652,2074.1,2073.3,0.74367645]
[1772086411232,0.56522388,2074.0,2073.3,0.74367645]
[1772086414145,7.2114442,2074.1,2073.3,0.74367645]
[1772086414348,6.652,2074.1,2073.3,0.74367645]
[1772086416539,6.652,2074.1,2073.5,0.79345171]
[1772086416948,6.652,2074.1,2073.7,0.79345171]
[1772086417242,0.55355813,2074.1,2073.7,0.79345171]
[1772086418742,11.65080104,2074.7,2073.7,0.79345171]
[1772086418945,9.09234292,2075.4,2074.6,0.79345171]
[1772086419150,9.09234292,2075.4,2074.5,1.17290696]
[1772086419151,9.09234292,2075.3,2074.8,0.79345171]
[1772086419847,8.89311396,2075.3,2075.0,0.79345171]
[1772086420043,0.5728691,2075.5,2074.9,1.17290696]
[1772086420251,0.81526617,2075.1,2074.8,0.79449141]
[1772086420452,0.81526617,2075.1,2074.8,0.0010397]
[1772086420747,10.63091263,2074.9,2074.8,0.0010397]
[1772086421348,10.63535503,2074.9,2074.8,0.0010397]
[1772086423147,10.63091263,2074.9,2074.8,0.79449141]
[1772086424047,10.63429326,2074.9,2074.8,0.79449141]
[1772086424650,10.63429326,2074.9,2074.8,0.0010397]
[1772086426553,10.63429326,2074.9,2074.8,0.79449141]
[1772086426750,0.81526617,2074.8,2073.9,6.331]
[1772086426956,0.81526617,2074.8,2073.3,1.77369944]
[1772086426957,0.17757671,2074.0,2073.3,1.77369944]
[1772086427253,0.17757671,2073.8,2073.3,1.77369944]
[1772086427447,6.89035734,2073.7,2073.3,1.77369944]
[1772086427648,6.89035734,2073.7,2073.1,1.86657853]
[1772086427649,0.17735734,2073.6,2073.1,1.86657853]
[1772086427854,8.44585735,2073.6,2073.1,1.87182085]
[1772086428151,0.56315431,2073.4,2072.4,1.86657853]
[1772086428359,0.56315431,2072.7,2071.6,1.86657853]
[1772086428656,0.55143491,2072.5,2071.6,1.86657853]
[1772086428953,6.721,2072.4,2071.6,1.86657853]
[1772086429155,6.72585512,2072.4,2071.6,1.87057835]
[1772086430151,7.54112129,2072.4,2071.6,1.87057835]
[1772086433758,4.27633486,2072.3,2071.6,1.87057835]
[1772086433954,7.54112129,2072.4,2071.6,1.87057835]
[1772086434159,13.02982529,2072.1,2071.6,1.87057835]
[1772086434558,12.69967063,2072.1,2071.6,1.87057835]
[1772086436553,13.48941269,2072.1,2071.6,1.87057835]
[1772086436754,0.78974206,2072.0,2071.6,1.87057835]
[1772086436962,17.75559141,2072.1,2071.6,1.87057835]
[1772086437161,5.05592078,2072.1,2071.6,1.87057835]
[1772086437362,15.68683341,2072.1,2071.6,1.87057835]
[1772086439066,11.41049855,2072.1,2071.6,1.87057835]
[1772086439962,0.75660136,2072.3,2071.6,1.87057835]
[1772086440161,10.63091263,2072.2,2071.6,1.87057835]
[1772086440365,4.27633486,2072.3,2071.6,1.87057835]
[1772086440863,0.00485512,2072.4,2071.6,1.87057835]
[1772086442764,0.70673295,2072.9,2071.6,1.87057835]
[1772086442963,0.70673295,2072.9,2071.8,2.20369048]
[1772086443265,4.27633486,2072.8,2071.9,2.20369048]
[1772086443562,0.69660188,2073.3,2072.0,2.20369048]
[1772086443763,0.70233003,2073.3,2072.0,2.20369048]
[1772086443959,2.19948662,2073.2,2072.0,2.20369048]
[1772086444757,2.20521477,2073.3,2072.2,2.20369048]
[1772086445261,2.20521477,2073.3,2072.4,2.20369048]
[1772086445262,0.00572815,2073.3,2072.4,2.20369048]
[1772086445464,10.63664078,2073.3,2072.4,2.20369048]
[1772086445862,2.19948662,2073.2,2072.4,2.20369048]
[1772086446068,2.19948662,2073.1,2072.4,2.20369048]
[1772086446469,12.83039925,2073.1,2072.4,2.20369048]
[1772086446658,10.63091263,2073.1,2072.4,2.20369048]
[1772086447572,2.19948662,2073.2,2072.4,2.20369048]
[1772086447767,12.69967063,2073.0,2072.4,2.20369048]
[1772086448363,23.33058326,2073.0,2072.4,2.20369048]
[1772086449270,10.63091263,2072.9,2072.4,2.20369048]
[1772086450366,12.69967063,2073.0,2072.6,2.20369048]
[1772086450664,12.69967063,2073.0,2072.7,6.03969048]
[1772086450866,10.63091263,2072.9,2072.7,6.03969048]
[1772086451060,12.69967063,2073.0,2072.7,6.03969048]
[1772086451266,12.69967063,2073.0,2072.7,3.27991838]
[1772086451267,2.19948662,2072.9,2072.7,3.27991838]
[1772086451462,6.81072815,2073.3,2072.7,3.27991838]
[1772086451463,12.83039925,2072.8,2072.7,2.90480379]
[1772086451664,2.19948662,2072.8,2072.5,0.17854168]
[1772086451866,2.19948662,2072.8,2072.5,2.38223216]
[1772086452370,10.63091263,2072.6,2072.5,2.38223216]
[1772086452561,10.39749428,2072.6,2072.5,2.38223216]
[1772086454971,10.39749428,2072.6,2072.5,0.17854168]
[1772086455371,9.49549428,2072.6,2072.5,2.38223216]
[1772086459577,7.60586987,2072.6,2072.5,2.38223216]
[1772086459873,4.31719959,2072.6,2072.5,2.38223216]
[1772086460078,2.19948662,2073.2,2072.8,1.30312067]
[1772086460274,0.00572815,2073.3,2072.8,1.30312067]
[1772086461582,2.20521477,2073.3,2072.8,1.30312067]
[1772086462483,12.69967063,2073.2,2072.8,1.30312067]
[1772086463082,12.62635674,2073.2,2072.8,1.30312067]
[1772086463586,12.04422436,2073.2,2073.0,1.77303703]
[1772086463786,6.818,2074.1,2073.1,1.77303703]
[1772086463983,2.19948662,2073.9,2073.1,1.77303703]
[1772086464383,2.19948662,2073.7,2073.1,1.77303703]
[1772086464784,2.19948662,2073.7,2073.0,6.321]
[1772086464990,2.19948662,2073.6,2073.1,2.20890581]
[1772086465593,2.19948662,2073.5,2073.1,2.20890581]
[1772086467990,2.19948662,2073.5,2073.1,0.00521533]
[1772086468290,2.19948662,2073.5,2073.1,2.73082588]
[1772086468892,2.62531139,2073.3,2073.1,0.00521533]
[1772086469287,4.83052616,2073.2,2073.0,6.321]
[1772086469488,2.62531139,2073.3,2073.0,6.321]
[1772086469791,2.62531139,2073.3,2073.0,9.04661055]
[1772086470290,2.62531139,2073.6,2073.1,2.72561055]
[1772086470493,2.62531139,2073.5,2073.1,2.72561055]
[1772086470790,2.62531139,2073.5,2073.1,0.17854168]
[1772086470992,2.62531139,2073.3,2073.1,0.17854168]
[1772086471482,2.62531139,2073.4,2073.1,2.90415223]
[1772086473088,4.75393804,2073.4,2073.1,2.90415223]
[1772086473683,2.12862665,2073.4,2073.1,0.17854168]
[1772086473888,2.78605697,2073.3,2073.1,0.17854168]
[1772086475591,2.78605697,2073.6,2073.1,2.93092611]
[1772086475793,2.78605697,2073.4,2073.1,2.93092611]
[1772086476183,2.78605697,2073.3,2073.1,0.17854168]
[1772086476687,2.78605697,2073.2,2073.0,6.32657712]
[1772086477490,2.78084165,2073.2,2073.0,6.32657712]
[1772086477688,2.78605697,2073.3,2073.0,6.32657712]
[1772086477892,12.04422436,2073.2,2073.0,9.07896155]
[1772086480297,2.78605697,2073.3,2073.0,9.07896155]
[1772086480990,2.12862665,2073.2,2073.0,9.07896155]
[1772086483495,2.79137136,2073.7,2073.3,2.75238443]
[1772086483702,2.79137136,2073.7,2073.3,9.07238443]
[1772086487104,0.00531439,2073.7,2073.4,2.75238443]
[1772086487706,2.79137136,2073.7,2073.4,2.75238443]
[1772086488314,2.79137136,2073.7,2073.4,6.75990875]
[1772086488498,2.79137136,2073.7,2073.4,10.59590875]
[1772086489102,2.79137136,2073.7,2073.4,7.84352432]
[1772086489303,2.79137136,2073.7,2073.4,3.836]
[1772086490106,2.79137136,2073.7,2073.4,14.16352432]
[1772086490607,2.79137136,2073.7,2073.4,16.91590875]
[1772086491003,2.79137136,2073.7,2073.5,2.75238443]
[1772086491004,0.00531439,2073.7,2073.5,2.75238443]
[1772086491205,2.79137136,2073.7,2073.4,10.59590875]
[1772086491509,2.79137136,2073.7,2073.4,16.91590875]
[1772086491709,2.79137136,2073.7,2073.4,14.16352432]
[1772086492910,2.79137136,2073.7,2073.5,4.00752432]
[1772086494211,2.79137136,2073.7,2073.5,7.84352432]
[1772086494411,2.79137136,2073.7,2073.5,3.836]
[1772086495513,2.78605697,2073.5,2073.4,4.00752432]
[1772086495709,14.83028133,2073.6,2073.4,4.00752432]
[1772086496009,14.83028133,2073.6,2073.3,13.05640082]
[1772086496312,2.78605697,2073.6,2073.3,13.05640082]
[1772086496812,2.78605697,2073.6,2073.3,10.32652432]
[1772086497709,2.78605697,2073.6,2073.3,4.00752432]
[1772086500308,2.78605697,2073.6,2073.0,5.99918369]
[1772086501013,2.78605697,2073.6,2073.1,2.7298765]
[1772086501811,2.78605697,2073.6,2073.0,8.72906019]
[1772086503014,2.78605697,2073.6,2073.1,2.7298765]
[1772086506016,0.00531439,2073.7,2073.3,2.7298765]
[1772086506310,1.18231859,2074.2,2073.5,2.7298765]
[1772086507216,1.18810701,2074.2,2073.5,2.7298765]
[1772086508816,1.22042284,2073.9,2073.3,3.626]
[1772086511811,12.04422436,2073.4,2073.2,3.626]
[1772086512017,12.04422436,2073.4,2073.1,2.7298765]
[1772086512723,13.23520556,2073.4,2073.1,2.7298765]
[1772086512921,12.04422436,2073.4,2073.1,2.7298765]
[1772086516224,13.20945992,2073.4,2073.1,2.7298765]
[1772086516622,1.16523556,2073.4,2073.1,1.8278765]
[1772086516919,1.16523556,2073.4,2073.0,2.73545362]
[1772086517118,1.16523556,2073.4,2072.9,5.99360657]
[1772086517119,2.06129129,2073.3,2072.6,5.99360657]
[1772086517319,2.06129129,2073.3,2072.6,3.90224354]
[1772086517625,2.06134049,2072.8,2072.1,8.72348307]
[1772086517922,2.06134049,2072.7,2072.0,2.7298765]
[1772086518122,2.06481187,2072.7,2072.0,2.73331908]
[1772086518322,2.06481187,2072.7,2072.3,2.7298765]
[1772086518520,2.11911989,2072.6,2072.3,2.7298765]
[1772086518723,1.899391,2073.0,2072.5,2.7298765]
[1772086519222,1.899391,2073.0,2072.1,2.7298765]
[1772086519927,1.90399454,2073.0,2072.1,2.7298765]
[1772086522721,1.86893215,2072.8,2072.1,2.7298765]
[1772086524029,6.813,2072.9,2072.1,2.7298765]